Cogmind - Beta 14 @@@ ROGUE MODE // 2024.08.08 @ 22:08:02 Player: FauxMaasks Result: Self-destructed Performance ------------- Evolutions (5) 2500 Regions Visited (12) 2400 Robots Destroyed (72) 360 Value Destroyed (3145) 3145 Prototype IDs (26) 520 Alien Tech Used (0) 0 Bonus (4082) 4082 TOTAL SCORE: 13007 Bonus ------- Entered DSFs 500 Registered with UFD 300 Met Warlord at Base 500 MAIN.C Attacked Warlord 500 Warlord Defense Kills 2570 Friendly Fire -288 Cogmind --------- Core Integrity 537/1000 Matter 10/300 Energy 15/100 System Corruption 15% Temperature Warning (370) Movement Core (900) Ox17 Location -5/Warlord Parts ------- > --- POWER (2) -------- (None) > --- PROPULSION (4) --- (None) > --- UTILITY (8) ------ High-capacity Storage Unit Advanced Targeting Computer Advanced Launcher Guidance Computer Improved Target Analyzer Centrium Medium Armor Plating > --- WEAPON (3) ------- Tesla Rifle > --- INVENTORY (20) --- Antimatter Reactor Reinforced Antimatter Reactor Thermal Generator Improved Heat Sink Advanced Heat Sink Seismic Detector Makeshift Thermal Plating Focal Shield Rainbow Chip Pulse Rifle Plasma Rifle Heavy Beamcaster Grenade Launcher Vortex Lance (40) Vortex Lance (23) Signal Generator DRS Beacon (Ready) Peak State ------------ > --- POWER ------------ Makeshift Power Source Neutrino Core > --- PROPULSION ------- Armored Huge Wheel Armored Huge Wheel > --- UTILITY ---------- High-capacity Storage Unit Advanced Targeting Computer Improved Target Analyzer Enhanced Scrap Shield EM Disruption Field Scrapoid Pod > --- WEAPON ----------- Beamcaster Bore Cannon Vortex Lance > --- INVENTORY -------- Neutrino Core Antimatter Reactor Reinforced Antimatter Reactor Armored Medium Treads Thermal Generator Advanced Heat Sink Seismic Detector Focal Shield Rainbow Chip Pulse Rifle Plasma Rifle Heavy Beamcaster Heavy Beamcaster Overtuned Barrage Gun Grenade Launcher Vortex Lance Signal Generator DRS Beacon [Rating: 92] Favorites ----------- Power Ion Engine Engine Ion Engine Power Core Nuclear Core Propulsion Overtuned Scrapsphere Treads Light Treads Wheel Overtuned Scrapsphere Utility High-capacity Storage Unit Device Seismic Detector Storage High-capacity Storage Unit Processor Advanced Targeting Computer Protection Makeshift Kinetic Plating Weapon Subdweller Laser Energy Gun Subdweller Laser Energy Cannon Beam Cannon Ballistic Gun Light Assault Rifle Ballistic Cannon Advanced Assault Cannon Launcher Grenade Launcher Special Weapon Mining Laser Impact Weapon Makeshift Hammer Piercing Weapon Vortex Lance Build | -11 -10 -10 -8 -8 -6 -6 -6 -6 -5 -5 -5 -5 ------- Run | Yrd Mat Sub Rec Scr Fac Was Fac DSF Fac Upp Upp War Slots Evolved 10 | . . . . . 8 . . . 2 . . . Power 1 | . . . . . 1 . . . . . . . Propulsion 2 | . . . . . 2 . . . . . . . Utility 6 | . . . . . 4 . . . 2 . . . Weapon 1 | . . . . . 1 . . . . . . . Parts Attached 88 | 7 8 18 4 6 9 . . 2 1 7 7 19 Power 11 | 1 . 2 1 2 1 . . . . 1 1 2 Engine 7 | 1 . 2 1 1 . . . . . 1 1 . Core 4 | . . . . 1 1 . . . . . . 2 Reactor . | . . . . . . . . . . . . . Propulsion 15 | 2 1 4 2 . 3 . . 1 . . . 2 Treads 3 | . . 2 . . . . . . . . . 1 Leg . | . . . . . . . . . . . . . Wheel 12 | 2 1 2 2 . 3 . . 1 . . . 1 Hover . | . . . . . . . . . . . . . Flight . | . . . . . . . . . . . . . Utility 32 | 2 5 4 1 1 3 . . . 1 2 5 8 Device 16 | 1 3 . . 1 2 . . . 1 . 3 5 Storage 4 | 1 2 1 . . . . . . . . . . Processor 4 | . . 1 . . 1 . . . . . 1 1 Hackware . | . . . . . . . . . . . . . Protection 8 | . . 2 1 . . . . . . 2 1 2 Artifact . | . . . . . . . . . . . . . Weapon 30 | 2 2 8 . 3 2 . . 1 . 4 1 7 Energy Gun 10 | 2 . 2 . . . . . . . 3 . 3 Energy Cannon 2 | . 1 1 . . . . . . . . . . Ballistic Gun 7 | . 1 2 . 1 1 . . 1 . . . 1 Ballistic Cannon 2 | . . . . 1 . . . . . . . 1 Launcher 6 | . . 3 . . 1 . . . . 1 . 1 Special Weapon 1 | . . . . 1 . . . . . . . . Impact Weapon 1 | . . . . . . . . . . . 1 . Slashing Weapon . | . . . . . . . . . . . . . Piercing Weapon 1 | . . . . . . . . . . . . 1 Special Melee Weapon . | . . . . . . . . . . . . . Unidentified Prototypes 5 | . . . . . . . . . . 2 . 3 Parts Lost 28 | . 4 2 . . 1 . . 3 1 3 . 14 Power 5 | . . . . . . . . . 1 1 . 3 Propulsion 7 | . 1 1 . . 1 . . 1 . . . 3 Utility 5 | . 1 . . . . . . . . 1 . 3 Weapon 11 | . 2 1 . . . . . 2 . 1 . 5 Highest Loss Streak 9 | . 2 1 . . 1 . . 3 1 2 . 9 To Critical Strikes 1 | . . . . . . . . . . . . 1 Average Slot Usage (%) 87 | . 99 96 84 92 86 93 93 87 70 67 71 78 Engine 9 | . 14 14 14 6 . . . . . 3 5 8 Core 2 | . . . . 7 10 13 13 13 9 1 . 1 Treads 5 | . . 26 . . . . . . . . . . Wheel 18 | . 27 1 27 28 26 26 26 22 17 17 17 13 Device 6 | . 14 . . 1 19 20 20 20 19 12 11 10 Storage 10 | . 14 11 14 14 6 6 6 6 5 5 5 5 Processor 3 | . . 3 . . 4 6 6 6 5 5 10 11 Protection 6 | . . 9 13 6 . . . . . 4 4 6 Energy Gun 11 | . 20 15 14 10 . . . . . 8 11 8 Ballistic Gun 4 | . 5 10 . 1 11 13 13 13 11 2 . . Ballistic Cannon 4 | . . . . 13 6 6 6 4 . . . 1 Peak Build Rating 92 | 7 8 21 16 22 52 53 54 59 58 70 76 92 Average Rating 32 | 3 7 15 13 17 47 52 53 56 56 57 68 78 On Entrance 35 | . 7 8 16 13 22 52 53 54 57 53 55 76 Naked Turns . | . . . . . . . . . . . . . Heaviest Build 99 | 15 50 61 56 66 77 77 77 77 74 79 85 99 Greatest Support 56 | 26 26 40 40 26 46 38 38 44 44 44 28 56 Greatest Overweight (x) 4 | . 4 2 2 2 2 2 2 2 1 2 3 3 Average Overweight (x) 1 | . 1 . 1 2 1 2 2 1 1 1 2 2 Largest Inventory Capacity 20 | 8 20 20 20 20 20 20 20 20 20 20 20 20 Average Capacity 19 | 7 19 16 20 20 20 20 20 20 20 20 20 20 Most Carried 20 | 6 13 19 17 20 20 18 19 20 19 20 20 20 Average Carried 16 | 4 10 14 14 18 16 17 18 19 18 19 19 19 Final Capacity 20 | 8 20 20 20 20 20 20 20 20 20 20 20 20 Final Carried 20 | 5 13 17 16 20 17 18 19 19 19 19 20 17 Class Distribution -------------------- 64% | Mutant 24% | Derelict-Mutant 6% | Derelict-Scrapper Dominant Class ---------------- Mutant | -10/Materials Mutant | -10/Subcaves Mutant | -8/Recycling Mutant | -8/Scraptown Derelict-Scrapper | -6/Factory Derelict-Scrapper | -6/Waste Derelict-Scrapper | -6/Factory Derelict-Scrapper | -6/DSF Derelict-Scrapper | -5/Factory Derelict-Mutant | -5/Upper Caves Derelict-Mutant | -5/Upper Caves Derelict-Mutant | -5/Warlord Resources | -11 -10 -10 -8 -8 -6 -6 -6 -6 -5 -5 -5 -5 ----------- Run | Yrd Mat Sub Rec Scr Fac Was Fac DSF Fac Upp Upp War Matter Collected 1953 | 212 153 299 50 30 447 . . 21 3 182 98 458 Remotely . | . . . . . . . . . . . . . Salvage Created 2945 | 56 488 364 180 . 668 . . . . 309 130 750 Parts 112 | 6 20 25 6 . 24 . . . . 8 3 20 Haulers Intercepted 1 | . 1 . . . . . . . . . . . Recyclers Shooed 1 | . . . . . 1 . . . . . . . Parts Field Recycled . | . . . . . . . . . . . . . Retrieved Matter . | . . . . . . . . . . . . . Parts Self-Destructed 29 | . . 17 . . . . . . . 8 4 . Prevented 5 | . . . . . . . . . . . 5 . Kills | -11 -10 -10 -8 -8 -6 -6 -6 -6 -5 -5 -5 -5 ------- Run | Yrd Mat Sub Rec Scr Fac Was Fac DSF Fac Upp Upp War Combat Hostiles Destroyed 63 | . 11 15 . . 8 . . . . 9 1 19 Melee 1 | . . . . . . . . . . 1 . . Guns 32 | . 11 5 . . 6 . . . . 4 1 5 Cannons 10 | . . 2 . . 2 . . . . . . 6 AOE 19 | . . 8 . . . . . . . 4 . 7 Classes Destroyed 16 | 1 4 1 . . 2 . . . . . 2 6 Tunneler 3 | 3 . . . . . . . . . . . . Hauler 1 | . 1 . . . . . . . . . . . Recycler 3 | . 1 . . . 2 . . . . . . . Swarmer 9 | . 3 2 . . . . . . . 4 . . Saboteur 1 | . . . . . . . . . . . . 1 Grunt 25 | . 8 2 . . 6 . . . . 5 . 4 Brawler 1 | . . . . . . . . . . . . 1 Duelist 2 | . . . . . 1 . . . . . . 1 Protector 1 | . . . . . . . . . . . . 1 Sentry 1 | . . . . . . . . . . . 1 . Specialist 1 | . . . . . . . . . . . . 1 Hunter 1 | . . . . . 1 . . . . . . . Programmer 6 | . . . . . . . . . . . . 6 Executioner 3 | . . . . . . . . . . . . 3 Subdweller 11 | . . 11 . . . . . . . . . . Samaritan 1 | . . . . . . . . . . . 1 . Thug 2 | . . . . . . . . . . . . 2 Bouncer 1 | . . . . . . . . . . . . 1 Best Kill Streak 7 | 3 2 4 . . 5 . . . . 5 1 7 Combat Bots Only 7 | . 2 4 . . 3 . . . . 5 1 7 Max Kills in Single Turn 4 | 1 1 2 . . 1 . . . . 3 1 4 Gunslinging 1 | . . 1 . . . . . . . . . . Exploded 4 | . . 2 . . . . . . . 3 . 4 Melee 1 | . . . . . . . . . . 1 . . Uniques/NPCs Destroyed . | . . . . . . . . . . . . . Combat | -11 -10 -10 -8 -8 -6 -6 -6 -6 -5 -5 -5 -5 -------- Run | Yrd Mat Sub Rec Scr Fac Was Fac DSF Fac Upp Upp War Hostile Shots Fired 489 | . 47 75 . . 46 . . 29 30 42 15 205 Missed 131 | . 12 23 . . 16 . . 6 9 13 5 47 Damage Taken 6829 | . 379 1047 . . 597 . . 467 407 497 194 3241 Core 807 | . 45 178 . . 23 . . 98 . 18 23 422 Absorbed by Shields . | . . . . . . . . . . . . . Ignored by Resistances 553 | . . 52 . . . . . . . . . 501 Regen/Repaired (Parts) 74 | . . . . . 20 . 13 . . 10 . 31 Core Remaining (%) 65 | 100 . . . 10 . . . 85 . . . . Volleys Fired 197 | 4 42 45 4 . 31 . . . . 18 13 40 Largest 3 | 2 2 2 1 . 3 . . . . 3 2 3 Hottest 176 | 100 100 135 60 . 103 . . . . 176 146 162 Shots Fired 383 | 8 84 74 4 . 82 . . 1 . 36 25 69 Gun 299 | 8 80 56 4 . 52 . . 1 . 31 25 42 Cannon 68 | . 4 10 . . 29 . . . . . . 25 Launcher 16 | . . 8 . . 1 . . . . 5 . 2 Special . | . . . . . . . . . . . . . Kinetic 159 | . 24 15 . . 81 . . 1 . 11 . 27 Thermal 206 | 8 60 51 4 . . . . . . 20 25 38 Explosive 16 | . . 8 . . 1 . . . . 5 . 2 Electromagnetic 2 | . . . . . . . . . . . . 2 Robot Hit Streak 22 | 6 22 13 2 . 12 . . . . 6 10 7 Robot Miss Streak 4 | . 4 2 1 . 1 . . . . 3 2 3 Penetration Max 2 | . . . . . . . . . . . . 2 Secondary Targets 1 | . . 1 . . . . . . . . . . Max Gunslinging Chain 1 | . . 1 . . . . . . . . . . Shots Hit Robots 259 | 6 61 46 3 . 57 . . . . 24 19 43 Core Hits 152 | 3 27 26 2 . 29 . . . . 22 6 37 Critical Kills 6 | . . . . . . . . . . 1 . 5 Critical Parts Destroyed 5 | . . . . . 1 . . . . . . 4 Critical Strikes 31 | . 4 1 . . 1 . . . . 3 4 18 Burn 16 | . 4 1 . . . . . . . 1 4 6 Destroy 13 | . . . . . 1 . . . . . . 12 Smash 2 | . . . . . . . . . . 2 . . Melee Attacks 11 | . . . . . . . . . . 4 1 6 Impact 5 | . . . . . . . . . . 4 1 . Slashing . | . . . . . . . . . . . . . Piercing . | . . . . . . . . . . . . . Entropic 6 | . . . . . . . . . . . . 6 Sneak Attacks . | . . . . . . . . . . . . . Combat Hostiles . | . . . . . . . . . . . . . Follow-up Attacks . | . . . . . . . . . . . . . Damage Inflicted 8407 | 75 709 1787 65 . 1317 . . . . 1090 286 3078 Guns 3379 | 75 674 575 65 . 739 . . . . 296 286 669 Cannons 1083 | . 35 123 . . 397 . . . . . . 528 Explosions 3411 | . . 1089 . . 181 . . . . 584 . 1557 Melee 534 | . . . . . . . . . . 210 . 324 Ramming . | . . . . . . . . . . . . . Kinetic 1947 | . 133 67 . . 1136 . . . . 60 . 551 Thermal 2473 | 75 576 631 65 . . . . . . 236 286 604 Explosive 3411 | . . 1089 . . 181 . . . . 584 . 1557 Electromagnetic 42 | . . . . . . . . . . . . 42 Impact 210 | . . . . . . . . . . 210 . . Slashing . | . . . . . . . . . . . . . Piercing . | . . . . . . . . . . . . . Entropic 324 | . . . . . . . . . . . . 324 Highest Corruption 18 | . 1 1 1 1 . 18 18 18 1 1 1 15 Average Corruption 1 | . 1 1 1 1 . 9 18 18 1 1 1 8 Corruption Purged . | . . . . . . . . . . . . . Corruption Blocked . | . . . . . . . . . . . . . Effects 59 | . 1 19 7 . . 2 3 4 1 10 4 8 Message Errors 13 | . . 8 1 . . . 1 1 . 2 . . Matter Fused 11 | . . 3 1 . . 2 1 . . 1 2 1 Heat Flow Errors 7 | . . 4 . . . . . 1 . 1 . 1 Energy Discharges 4 | . 1 . 1 . . . . . . . . 2 Parts Fused 2 | . . 1 . . . . . . . . . 1 Data Loss (minor) 12 | . . 1 4 . . . . 1 . 3 1 2 Data Loss (major) 3 | . . 1 . . . . 1 . . . 1 . Misfires 4 | . . 1 . . . . . 1 . 2 . . Alerts 2 | . . . . . . . . . 1 1 . . Misdirections 1 | . . . . . . . . . . . . 1 Overload Shots . | . . . . . . . . . . . . . Overflow Damage 125 | . . 29 . . 1 . . . . 28 . 67 Projectiles 1 | . . . . . 1 . . . . . . . Explosions 29 | . . 29 . . . . . . . . . . Melee 95 | . . . . . . . . . . 28 . 67 Knockbacks 8 | . . . . . 7 . . . . 1 . . Impact 1 | . . . . . . . . . . 1 . . Kinetic 6 | . . . . . 6 . . . . . . . Secondary 1 | . . . . . 1 . . . . . . . Self-Inflicted Damage . | . . . . . . . . . . . . . Shots . | . . . . . . . . . . . . . Rammed . | . . . . . . . . . . . . . Targets Rammed . | . . . . . . . . . . . . . Kicked . | . . . . . . . . . . . . . Crushed . | . . . . . . . . . . . . . Highest Temperature 382 | 78 111 252 26 . 49 . . 185 . 106 329 382 Average Temperature 82 | 34 27 58 16 . 17 . . 93 . 30 134 146 Received Heat Transfer 1038 | . 180 195 . . 186 . . 72 33 111 36 225 Effects 6 | . . . . . . . . . . . . 6 Shutdowns 3 | . . . . . . . . . . . . 3 Energy Bleed 2 | . . . . . . . . . . . . 2 Short Circuit 1 | . . . . . . . . . . . . 1 Siege Activations . | . . . . . . . . . . . . . Robots Corrupted . | . . . . . . . . . . . . . Combat Hostiles . | . . . . . . . . . . . . . Parts Fried . | . . . . . . . . . . . . . Impact Corruptions 2 | . . . . . . . . . . 2 . . Robots Melted 1 | . . . . . . . . . . . . 1 Combat Hostiles 1 | . . . . . . . . . . . . 1 Parts Melted 18 | . 5 . . . . . . . . . 5 8 Heat Transferred 5966 | 222 1961 1101 75 . . . . . . 481 814 1312 Parts Sabotaged . | . . . . . . . . . . . . . Parts Stolen . | . . . . . . . . . . . . . Parts Stripped . | . . . . . . . . . . . . . Power Chain Reactions . | . . . . . . . . . . . . . Alert | -11 -10 -10 -8 -8 -6 -6 -6 -6 -5 -5 -5 -5 ------- Run | Yrd Mat Sub Rec Scr Fac Was Fac DSF Fac Upp Upp War Peak Influence 300 | 15 164 . 32 . 300 105 73 56 33 . . . Initial 105 | . 9 . 16 . . 105 73 51 18 . . . Average 60 | 4 67 . 16 . 151 105 73 46 27 . . . Maximum Alert Level 1 | . . . . . 1 . . . . . . . Low Security (%) 95 | 100 100 . 100 . 64 100 100 100 100 . . . Level 1 4 | . . . . . 35 . . . . . . . Level 2 . | . . . . . . . . . . . . . Level 3 . | . . . . . . . . . . . . . Level 4 . | . . . . . . . . . . . . . Level 5 . | . . . . . . . . . . . . . High Security . | . . . . . . . . . . . . . Max Security . | . . . . . . . . . . . . . Squads Dispatched 6 | . 2 . . . 3 . . 1 . . . . Investigation 3 | . 1 . . . 2 . . . . . . . Extermination . | . . . . . . . . . . . . . Reinforcement 3 | . 1 . . . 1 . . 1 . . . . Assault . | . . . . . . . . . . . . . Garrison . | . . . . . . . . . . . . . Intercept . | . . . . . . . . . . . . . Searches Triggered . | . . . . . . . . . . . . . Construction Impeded . | . . . . . . . . . . . . . Haulers Reinforced . | . . . . . . . . . . . . . Active Scanning Responses . | . . . . . . . . . . . . . Cargo Convoy Interrupts . | . . . . . . . . . . . . . Stealth | -11 -10 -10 -8 -8 -6 -6 -6 -6 -5 -5 -5 -5 --------- Run | Yrd Mat Sub Rec Scr Fac Was Fac DSF Fac Upp Upp War Distress Signals 1 | . . . . . . . . . . . . 1 Communications Jammed . | . . . . . . . . . . . . . Distress Signals . | . . . . . . . . . . . . . Times Spotted 150 | . 17 28 1 . 15 6 . 2 3 13 3 62 Peak Tracking Total 12 | . 4 7 1 . 5 6 . 3 2 5 3 12 Tactical Retreats 11 | . 2 1 . . 2 . . 1 . 1 . 4 Traps | -11 -10 -10 -8 -8 -6 -6 -6 -6 -5 -5 -5 -5 ------- Run | Yrd Mat Sub Rec Scr Fac Was Fac DSF Fac Upp Upp War Traps Triggered 5 | . 2 . . . 1 . . 1 1 . . . Indirectly . | . . . . . . . . . . . . . Trap Hack Attempts . | . . . . . . . . . . . . . Triggered . | . . . . . . . . . . . . . Disarmed . | . . . . . . . . . . . . . Reprogrammed . | . . . . . . . . . . . . . Reused 1 | . . . . . . . . . . . . 1 Traps Extracted . | . . . . . . . . . . . . . Installed 2 | . . . . . . . . 1 . . . 1 Triggered 26 | . . 2 . . . . . . . . 2 22 Most Traps Carried 2 | . . 1 1 2 2 2 2 2 1 1 1 1 Machines | -11 -10 -10 -8 -8 -6 -6 -6 -6 -5 -5 -5 -5 ---------- Run | Yrd Mat Sub Rec Scr Fac Was Fac DSF Fac Upp Upp War Machines Disabled 2 | . . . . . 2 . . . . . . . Max in Single Turn 1 | . . . . . 1 . . . . . . . Machines Repaired . | . . . . . . . . . . . . . Machines Dismantled . | . . . . . . . . . . . . . Machines Sabotaged . | . . . . . . . . . . . . . Overloaded Fab Kills . | . . . . . . . . . . . . . Hacking | -11 -10 -10 -8 -8 -6 -6 -6 -6 -5 -5 -5 -5 --------- Run | Yrd Mat Sub Rec Scr Fac Was Fac DSF Fac Upp Upp War Machines Accessed 42 | . 7 4 8 9 2 . 1 . 1 3 1 6 Terminals 15 | . 6 . 5 . 2 . 1 . 1 . . . Fabricators . | . . . . . . . . . . . . . Repair Stations . | . . . . . . . . . . . . . Recycling Units 2 | . 1 . 1 . . . . . . . . . Scanalyzers . | . . . . . . . . . . . . . Garrison Access . | . . . . . . . . . . . . . Total Hacks 150 | . 19 16 46 50 4 . 1 . 1 5 1 7 Successful 132 | . 12 16 39 50 . . 1 . 1 5 1 7 Failed 17 | . 7 . 6 . 4 . . . . . . . Catastrophic 2 | . 1 . . . 1 . . . . . . . Database Lockouts 1 | . . . 1 . . . . . . . . . Manual 30 | . 13 . 17 . . . . . . . . . Terminals 43 | . 17 . 20 . 4 . 1 . 1 . . . Fabricators . | . . . . . . . . . . . . . Repair Stations . | . . . . . . . . . . . . . Recycling Units 3 | . 2 . 1 . . . . . . . . . Scanalyzers . | . . . . . . . . . . . . . Garrison Access . | . . . . . . . . . . . . . Terminal Hacks 124 | . 7 16 36 50 . . 1 . 1 5 1 7 Record 100 | . 2 13 33 44 . . . . . 3 . 5 Part Schematic 1 | . . . 1 . . . . . . . . . Robot Analysis 7 | . 2 . . 5 . . . . . . . . Prototype ID Bank 2 | . 2 . . . . . . . . . . . Open Door 6 | . . 1 . . . . . . . 2 1 2 Open DSF 2 | . . . . . . . 1 . 1 . . . Alert Level 2 | . 1 . 1 . . . . . . . . . Derelict Proto ID Bank 2 | . . 1 . 1 . . . . . . . . Release Object 2 | . . 1 1 . . . . . . . . . Fabricator Hacks . | . . . . . . . . . . . . . Repair Station Hacks . | . . . . . . . . . . . . . Recycling Unit Hacks 2 | . 1 . 1 . . . . . . . . . Process 1 | . . . 1 . . . . . . . . . Report Inventory 1 | . 1 . . . . . . . . . . . Scanalyzer . | . . . . . . . . . . . . . Garrison Access Hacks . | . . . . . . . . . . . . . Unauthorized Hacks 6 | . 4 . 2 . . . . . . . . . Terminals 5 | . 3 . 2 . . . . . . . . . Botnet 4 | . 2 . 2 . . . . . . . . . Disrupt 1 | . 1 . . . . . . . . . . . Fabricators . | . . . . . . . . . . . . . Repair Stations . | . . . . . . . . . . . . . Recycling Units 1 | . 1 . . . . . . . . . . . Monitor 1 | . 1 . . . . . . . . . . . Scanalyzers . | . . . . . . . . . . . . . Garrison Access . | . . . . . . . . . . . . . Data Cores Recovered . | . . . . . . . . . . . . . Used . | . . . . . . . . . . . . . Hacking Detections 14 | . 6 . 6 . 2 . . . . . . . Full Trace Events 2 | . . . . . 2 . . . . . . . Feedback Events . | . . . . . . . . . . . . . Feedback Blocked . | . . . . . . . . . . . . . Robot Schematics Acquired . | . . . . . . . . . . . . . Robots Built . | . . . . . . . . . . . . . Authchips . | . . . . . . . . . . . . . Time . | . . . . . . . . . . . . . Total Robot Build Rating . | . . . . . . . . . . . . . Part Schematics Acquired 1 | . . . 1 . . . . . . . . . Parts Built . | . . . . . . . . . . . . . Authchips . | . . . . . . . . . . . . . Time . | . . . . . . . . . . . . . Total Part Build Rating . | . . . . . . . . . . . . . Parts Repaired . | . . . . . . . . . . . . . Time . | . . . . . . . . . . . . . Parts Recycled . | . . . . . . . . . . . . . Recycled Matter 34 | . . . 34 . . . . . . . . . Retrieved Matter . | . . . . . . . . . . . . . Retrieved Components . | . . . . . . . . . . . . . Parts Scanalyzed . | . . . . . . . . . . . . . Part Schematics Acquired . | . . . . . . . . . . . . . Parts Damaged . | . . . . . . . . . . . . . Bothacking | -11 -10 -10 -8 -8 -6 -6 -6 -6 -5 -5 -5 -5 ------------ Run | Yrd Mat Sub Rec Scr Fac Was Fac DSF Fac Upp Upp War Used RIF Installer . | . . . . . . . . . . . . . Robots Hacked . | . . . . . . . . . . . . . Non-combat . | . . . . . . . . . . . . . Combat . | . . . . . . . . . . . . . Robot Hacks Applied . | . . . . . . . . . . . . . Relay Couplers Released . | . . . . . . . . . . . . . Fabnet Peak Effective % . | . . . . . . . . . . . . . Robots Rewired . | . . . . . . . . . . . . . Allies Hacked . | . . . . . . . . . . . . . Hacks Repelled . | . . . . . . . . . . . . . Allies | -11 -10 -10 -8 -8 -6 -6 -6 -6 -5 -5 -5 -5 -------- Run | Yrd Mat Sub Rec Scr Fac Was Fac DSF Fac Upp Upp War Total Allies . | . . . . . . . . . . . . . Largest Group . | . . . . . . . . . . . . . Highest-Rated Group . | . . . . . . . . . . . . . Highest-Rated Ally . | . . . . . . . . . . . . . Total Orders 17 | . . . . . . . . . . . 15 2 STAY 1 | . . . . . . . . . . . 1 . EXPLORE 7 | . . . . . . . . . . . 6 1 RETURN 9 | . . . . . . . . . . . 8 1 Ally Attacks . | . . . . . . . . . . . . . Total Damage . | . . . . . . . . . . . . . Kills . | . . . . . . . . . . . . . Allies Corrupted . | . . . . . . . . . . . . . Allies Melted 1 | . . . . . . . . . . . . 1 Intel | -11 -10 -10 -8 -8 -6 -6 -6 -6 -5 -5 -5 -5 ------- Run | Yrd Mat Sub Rec Scr Fac Was Fac DSF Fac Upp Upp War Robot Analysis Total 7 | . 2 . . 5 . . . . . . . . Derelict Logs Recovered 5 | . . 1 . 2 . . . . . 1 1 . Drone Launches 7 | . . . . . . . . . . . 5 2 Drone Recoveries 7 | . . . . . . . . . . . 5 2 Exploration | -11 -10 -10 -8 -8 -6 -6 -6 -6 -5 -5 -5 -5 ------------- Run | Yrd Mat Sub Rec Scr Fac Was Fac DSF Fac Upp Upp War Turns Passed 11552 | 88 1190 2508 786 3031 320 122 53 71 86 1000 887 1410 Spaces Moved 7851 | 63 721 1112 640 2495 194 120 52 60 93 794 607 900 Core 8 | 8 . . . . . . . . . . . . Treads 977 | . . 977 . . . . . . . . . . Legs . | . . . . . . . . . . . . . Wheels 6866 | 55 721 135 640 2495 194 120 52 60 93 794 607 900 Hover . | . . . . . . . . . . . . . Flight . | . . . . . . . . . . . . . Fastest Speed 50 | 50 90 110 105 120 98 101 101 91 91 91 130 91 Average Speed 129 | 93 107 205 118 120 99 101 101 94 91 108 132 125 Slowest Speed 240 | 100 140 240 120 120 120 101 101 101 91 130 145 145 Overloaded Moves . | . . . . . . . . . . . . . Propulsion Burnouts . | . . . . . . . . . . . . . Robots Hopped . | . . . . . . . . . . . . . Cave-ins Triggered . | . . . . . . . . . . . . . Exploration Rate (%) 56 | 4 81 64 98 95 6 75 2 59 5 80 74 97 Regions Visited 12 Branch Regions 6 Pre-discovered Areas 5 | . . 2 . 1 . . . . . 2 . . Known Exits Taken 2 | . . . . . . . 1 . . 1 . . Unknown Exits Taken 7 | 1 1 1 1 1 . . . . 1 . 1 . Scrap Searched 26 | . . 9 . 13 . . . . . 2 2 . Spaces Dug 1 | . . . . . . . . . . . 1 . Terrain Destroyed 80 | . . 34 . . 18 . . . . 21 1 6 Melee 1 | . . . . . . . . . . . 1 . Projectile 12 | . . . . . 5 . . . . 1 . 6 AOE 67 | . . 34 . . 13 . . . . 20 . . Terrain Rammed . | . . . . . . . . . . . . . Walls Destroyed . | . . . . . . . . . . . . . Machines Disabled . | . . . . . . . . . . . . . Actions | -11 -10 -10 -8 -8 -6 -6 -6 -6 -5 -5 -5 -5 --------- Run | Yrd Mat Sub Rec Scr Fac Was Fac DSF Fac Upp Upp War Total 8894 | 81 1057 1266 670 2541 272 120 52 75 94 894 665 1107 Wait 560 | 1 273 45 9 . 33 . . . . 62 33 104 Move 7840 | 62 720 1111 639 2494 194 119 51 59 92 793 606 900 Hop . | . . . . . . . . . . . . . Pick Up 84 | 7 12 22 2 18 5 1 1 1 1 1 1 12 Fast Attach 25 | 5 . 3 . 3 2 . . 2 . 2 4 4 Attach 42 | 2 4 6 4 2 7 . . . 1 3 3 10 Detach 23 | . . 5 4 3 . . . 1 . 3 3 4 Swap 21 | . 4 9 . 1 . . . . . 2 . 5 Drop 51 | . 2 12 3 16 . . . 3 . 2 1 12 Fire 197 | 4 42 45 4 . 31 . . . . 18 13 40 Melee 11 | . . . . . . . . . . 4 1 6 Ram . | . . . . . . . . . . . . . Kick . | . . . . . . . . . . . . . Crush . | . . . . . . . . . . . . . Escape Stasis 8 | . . . . . . . . 8 . . . . Rewire 23 | . . 1 5 4 . . . . . 4 . 9 Trap 2 | . . . . . . . . 1 . . . 1 Miscellaneous 7 | . . 7 . . . . . . . . . . Route ------- -11/Scrapyard -10/Materials (discovered 4 exits: [*Mat x2] / [*Min] / *Sub) -10/Subcaves (discovered 3 exits: [*Mat x2] / *Rec) -8/Recycling (discovered 2 exits: *Fac / *Scr) -8/Scraptown (discovered 2 exits: *Fac x2) -6/Factory -6/Waste -6/Factory -6/DSF -5/Factory -5/Upper Caves -5/Upper Caves (discovered 2 exits: Fac / *War) -5/Warlord (discovered 1 exit: [*Pro]) History --------- Turn | Location | Event 4 | -11/Scrapyard | Discovered new exit (range 16) 89 | -11/Scrapyard | Entered Materials 315 | -10/Materials | Build established: Mutant 520 | -10/Materials | Discovered new exit (range 15) 949 | -10/Materials | Discovered new exit (range 10) 1230 | -10/Materials | Discovered new exit (range 14) 1271 | -10/Materials | Discovered new exit (range 8) 1279 | -10/Materials | Entered Subcaves 1360 | -10/Subcaves | Discovered new exit (range 5) 1378 | -10/Subcaves | Ambushed by swarm of Subdwellers 1383 | -10/Subcaves | Ambushed by Subdwellers from Twisted Machinery 1579 | -10/Subcaves | A Subdweller sparked back to life 1579 | -10/Subcaves | A Subdweller sparked back to life 1726 | -10/Subcaves | Visited Clippyterm 1731 | -10/Subcaves | Learned location of Extension (-6) 1884 | -10/Subcaves | Found Prototype Processor 2260 | -10/Subcaves | Visited 4L-MR0's lab 2271 | -10/Subcaves | Identified Rainbow Chip 2504 | -10/Subcaves | Learned Materials terminal intel 3026 | -10/Subcaves | Shifting Twisted Machinery released Scrap Shield 3065 | -10/Subcaves | Core integrity fell below 50% 3237 | -10/Subcaves | Learned location of Zion (-7) 3237 | -10/Subcaves | Met a Zionite searching for "candidates" 3346 | -10/Subcaves | A swath of the cavern ceiling suddenly collapsed 3399 | -10/Subcaves | Shifting Twisted Machinery released Sub. Power Source 3565 | -10/Subcaves | Discovered new exit (range 13) 3779 | -10/Subcaves | Discovered new exit (range 8) 3780 | -10/Subcaves | Core integrity fell below 20% 3787 | -10/Subcaves | Entered Recycling 3788 | -8/Recycling | Met a Zionite searching for Scraptown 3788 | -8/Recycling | Joined Warlord attack on 0b10 via Recycling 3982 | -8/Recycling | Discovered new exit (range 7) 4537 | -8/Recycling | Scanned before Scraplab entrance 4571 | -8/Recycling | Discovered new exit (range 3) 4573 | -8/Recycling | Entered Scraptown 4576 | -8/Scraptown | System corruption cleaned by C-Scrubber 4611 | -8/Scraptown | Heard Great Nut preacher, LISTEN AND RECITE! 4848 | -8/Scraptown | Visited Assassins FH 4898 | -8/Scraptown | Scanned Subdweller tech in exchange for log data 4900 | -8/Scraptown | Learned 8 Research zone layouts 4901 | -8/Scraptown | Learned location of 2 exits from Upper Caves 4918 | -8/Scraptown | Discovered new exit (range 7) 5067 | -8/Scraptown | Visited Shadow of the Wyrm 5118 | -8/Scraptown | Visited The Evicted 5404 | -8/Scraptown | Visited IN-MT5's Study 5449 | -8/Scraptown | Visited Red Mages 5581 | -8/Scraptown | Visited Cyclists 5623 | -8/Scraptown | Visited Bundlers 5705 | -8/Scraptown | Visited UFD Registry 5705 | -8/Scraptown | Registered with UFD as "Scrapgrid" 5737 | -8/Scraptown | Entered Cyclist Reading Room 5882 | -8/Scraptown | Visited Chapter 10 5977 | -8/Scraptown | Visited DA-N13 Charitable Foundation 5982 | -8/Scraptown | Found DCF Scrap (25 items) 6045 | -8/Scraptown | Visited Scrap Suit Storage 6114 | -8/Scraptown | Delivered Scrap Shield to a Scientist 6308 | -8/Scraptown | Visited Observation Area 6370 | -8/Scraptown | Visited Research Penetration Think Tank 6472 | -8/Scraptown | Visited Scrapoid Pod Storage 6478 | -8/Scraptown | Found Scrapoid Pod 6493 | -8/Scraptown | Visited Science Guys 6545 | -8/Scraptown | Visited Derelict Rescue Squad 6558 | -8/Scraptown | Found DRS Beacon 6583 | -8/Scraptown | Visited LU-1G1's Boring Crew 6671 | -8/Scraptown | Visited Analyses Database 7093 | -8/Scraptown | Discovered new exit (range 3) 7165 | -8/Scraptown | Found Scrap Suit 7604 | -8/Scraptown | Entered Factory 7604 | -6/Factory | Evolved 8 slots: Power x1, Propulsion x2, Utility x4, Weapon x1 7924 | -6/Factory | Sucked down chute 7924 | -6/Factory | Entered Waste 7939 | -6/Waste | EMP discharged 7958 | -6/Waste | Spotted C-40 Crusher 7959 | -6/Waste | Spotted C-40 Crusher 7968 | -6/Waste | Spotted C-40 Crusher 7983 | -6/Waste | Spotted C-40 Crusher 7997 | -6/Waste | Spotted C-40 Crusher 8004 | -6/Waste | Spotted C-40 Crusher 8035 | -6/Waste | Discovered new exit (range 12) 8039 | -6/Waste | EMP discharged 8039 | -6/Waste | System corruption reached 10% 8040 | -6/Waste | Build established: Derelict-Scrapper 8046 | -6/Waste | Entered Factory 8094 | -6/Factory | Identified exit to DSF 8099 | -6/Factory | Entered DSF 8134 | -6/DSF | Additional patrols routed to DSF 8157 | -6/DSF | Discovered new exit (range 11) 8170 | -6/DSF | Entered Factory 8170 | -5/Factory | Evolved 2 slots: Utility x2 8194 | -5/Factory | Lost 3 parts (1n2w) 8225 | -5/Factory | Spotted B-75 Beast 8242 | -5/Factory | Discovered new exit (range 8) 8256 | -5/Factory | Entered Upper Caves 8257 | -5/Upper Caves | Identified exit to Upper Caves 8258 | -5/Upper Caves | UFD Scientist delivered a prototype 8262 | -5/Upper Caves | Found Prototype Protection 8262 | -5/Upper Caves | Identified Enh. Scrap Shield 8434 | -5/Upper Caves | Encountered a Warlord checkpoint 8572 | -5/Upper Caves | Learned 4 Factory zone layouts 8738 | -5/Upper Caves | Build established: Derelict-Mutant 9256 | -5/Upper Caves | Entered another Upper Caves area 9257 | -5/Upper Caves | Identified exit to Factory 9273 | -5/Upper Caves | Encountered a Warlord checkpoint 9344 | -5/Upper Caves | Attracted the attention of an 0b10 checkpoint 9793 | -5/Upper Caves | Discovered new exit (range 8) 9816 | -5/Upper Caves | Learned Factory security intel 10143 | -5/Upper Caves | Entered Warlord 10199 | -5/Warlord | System corruption cleaned by Quarantine Array 10239 | -5/Warlord | Discovered new exit (range 8) 10503 | -5/Warlord | Learned 4 Quarantine zone layouts 10504 | -5/Warlord | Learned Testing stockpile data 10507 | -5/Warlord | Learned Factory garrison access intel 10625 | -5/Warlord | Found Signal Generator 10662 | -5/Warlord | Rebuked by Warlord 10682 | -5/Warlord | Warlord's base attacked by MAIN.C 10820 | -5/Warlord | Found Prototype Piercing Weapon 10820 | -5/Warlord | Identified Vortex Lance 10822 | -5/Warlord | Found Vortex Lance 11032 | -5/Warlord | Warlord forces counterattacked 11057 | -5/Warlord | Spotted Striker 11073 | -5/Warlord | Spotted Executioner 11080 | -5/Warlord | Destroyed Executioner 11083 | -5/Warlord | Destroyed Executioner 11088 | -5/Warlord | Spotted B-86 Titan 11128 | -5/Warlord | Spotted Striker 11178 | -5/Warlord | Lost 29 allies 11211 | -5/Warlord | Opened side exit 11357 | -5/Warlord | Warlord base infiltrated, sounded retreat 11438 | -5/Warlord | Lost 3 parts (1p1n1u) 11445 | -5/Warlord | System corruption reached 10% 11485 | -5/Warlord | Spotted Executioner 11509 | -5/Warlord | Destroyed Executioner 11520 | -5/Warlord | Spotted Striker 11529 | -5/Warlord | Found Prototype Launcher 11529 | -5/Warlord | Identified Chain Missile Launcher 11553 | -5/Warlord | Self-destructed Last Messages --------------- 11533_ The unstable cave ceiling collapses. 11533_ G-50 Soldier destroyed. 11533_ P-80 Master destroyed. 11533_ Slug penetrates Earth. 11534_ Critical hit (Burn: +37). 11536_ System corrupted: Chain Missile Launcher fused. 11538_ Chain Missile Launcher destroyed. 11539_ Penetrated by Slug. 11542_ Scrapoid Pod destroyed. 11545_ Penetrated by Slug. 11545_ Neutrino Core destroyed. 11545_ Slug penetrates Striker. 11548_ The unstable cave ceiling collapses. 11548_ Critical hit (Burn: +37). 11548_ G-50 Soldier destroyed. 11548_ Striker suffers critical hit (Burn). 11548_ Critical hit (Destroy). 11548_ Hvy. Beamcaster destroyed. 11551_ Penetrated by Slug. 11551_ EM Disruption Field destroyed. Map ----- +----------------------------------------------------+ | ##X##+######## # #???????????## | | ###### ##########??????????## | | ^^^^^ #??????????????????## | | ^ ^^ ^^ # ## #??????????????????# | | #####^^" "" " ######+###??????????????????# | | ###?# """""" # #??????????????????# | | ""#?# """" # #??????????????????# | | ""#?# + #??????????????????## | | ""#?# # #???????????????????### | | " #?######+## # #?????????????????????# | | #?# # # #?????????????????????? | | #?# # # #?????????????????????? | | ""#?# "" #^^ ^^# #?????????????????????? | | ""#?#"" # # #?????????????????????? | | ""#?#""" # =!;###+###+##?????#""#???????????? | | ""#?#""" # /%= #?????#""#???????????? | | ###?#"" # * ##????#""#???????????? | | ????# "" # ###??#""#???????????? | | ????# ##?#""#????????#??? | | ????# # # ###""######?# #??? | | ##??# * # !*=""[*![[# # | | #??####### % % !! # "" [!=%! | | #????????? =% # " % %%!! | | ########### % %]==]% % %!!=[ [% * | | ## % ! % =*% %% | | ## % @K [ ![!= ! | | ## = ! = %| = !! / | | / """" %! %% = # !"" ! [ = ! | | ## """" %[* ] % % =[ /*""%*|![ " """" | | ## """" %g![ M% ; [""*[==## #### | | ## """" b ;##;[ ;## ##""#####???????? | | ## " % #?#; % #### ##""#???????????? | | ## ## ; #####?## #???##""#???????????? | | +############ ####?????#;!%!##????#""#???????????? | | #????# #????????#; ;#????#""#???????????? | | #????# #????????# #????#""#???????????? | | "" """ #????# #????????# ????####???????????? | | "" """ ###### ###??????# #???????????????????? | | "" """ # #??????# # ??????????????????? | | "" """ # * #??????# ??????????????????? | | "" """ # % ###### % #?????????????????? | | # #???????????????### | | ##+##### % ! %% ##??????????????## | | # + ! # ##???????????????# | | # ##### # % #????????????????# | | # #???# # #????????????????# | | # #???# #######/"#####????????????????#### | | # #########+######## #???????????????????????? | | + ^^ #???????????????????????? | | # ^^ #???????????????????????? | +----------------------------------------------------+ Best States ------------- Heat Dissipation 78 Energy Generation 29 Energy Capacity 385 Matter Stores 300 Matter Capacity 300 Sight Range 16 Terrain Scan Density 10 Armor Coverage 900 Resistance: KI 20 Resistance: TH 10 Resistance: EM 25 Evasion (%) 42 Targeting Accuracy 8 Launcher Accuracy 40 Target Analysis 6 Recoil Reduction 2 Item Schematics ----------------- Adv. Signal Interpreter | -8/Recycling | Hacked Robot Schematics ------------------ None Fabricated ------------ Nothing Alien Tech Used ----------------- None Achievements -------------- None Challenges ------------ None Game ------ Seed HypervelocityIonBoomstick Manual? 0 Play Time 02:45:32 Cumulative 125.1 hours Start 2024.08.07 @ 20:36:02 End 2024.08.08 @ 22:08:02 Sessions 11 Manual Loads 0 Difficulty Rogue Special Mode None Game No. 33 Rogue 14 Adventurer 17 Explorer 2 Win Type - Total 3 Types 2/0/1/0/0/0/0/0/0 Lore% 43 Gallery% 57 Achievement% 57 Wizard Run 0 Options --------- Layout 2 ASCII 0 Keyboard 0 Movement Vi Keybinds 0 Fullscreen 0 Font 20/SmallcapsGlow Map View 64x51 Zoom Use 0% Tactical HUD 1 Map Filters NONE Filters NONE Steam 1 RUN: 742cbd5b-b28d-488d-b683-2e2da4c58ff6